fUSD/lending_fUSD_20250426
["ID","MTS","AMOUNT","RATE_DAILY","PERIOD"]
[359101220,1745707837270,-1927.6,0.00019778,2]
[359101222,1745707837279,-462.21,0.00019778,2]
[359101224,1745707837289,-400.0,0.00019778,2]
[359101226,1745707837299,-400.0,0.00019778,2]
[359101228,1745707837310,-455.45,0.00019778,2]
[359101230,1745707837321,-2321.02,0.00019778,2]
[359101232,1745707837330,-429.37,0.00019778,2]
[359101234,1745707837340,-400.0,0.00019778,2]
[359101236,1745707837350,-830.34,0.00019778,2]
[359101238,1745707837360,-762.45,0.00019778,2]
[359101240,1745707837370,-400.0,0.00019778,2]
[359101242,1745707837379,-150.0,0.00019778,2]
[359101244,1745707837390,-490.9,0.00019778,2]
[359101247,1745707837399,-400.0,0.00019778,2]
[359101249,1745707837409,-150.0,0.00019778,2]
[359101251,1745707837419,-400.0,0.00019778,2]
[359101253,1745707837428,-150.0,0.00019778,2]
[359101255,1745707837438,-438.67,0.00019778,2]
[359101257,1745707837448,-665.0,0.00019778,2]
[359101259,1745707837457,-400.0,0.00019778,2]
[359101261,1745707837467,-400.0,0.00019778,2]
[359101263,1745707837476,-400.0,0.00019778,2]
[359101265,1745707837486,-150.0,0.00019778,2]
[359101267,1745707837497,-932.08,0.00019778,2]
[359101269,1745707837507,-400.0,0.00019778,2]
[359101271,1745707837519,-150.0,0.00019778,2]
[359101273,1745707837529,-400.0,0.00019778,2]
[359101275,1745707837538,-507.07,0.00019778,2]
[359101277,1745707837547,-151.39713892,0.00019778,2]
[359101279,1745707837557,-500.0,0.00019778,2]
[359101281,1745707837567,-400.0,0.00019778,2]
[359101283,1745707837576,-400.0,0.00019778,2]
[359101285,1745707837585,-150.0,0.00019778,2]
[359101287,1745707837595,-400.0,0.00019778,2]
[359101289,1745707837605,-150.0,0.00019778,2]
[359101291,1745707837615,-400.0,0.00019778,2]
[359101293,1745707837625,-637.14,0.00019778,2]
[359101295,1745707837635,-400.0,0.00019778,2]
[359101297,1745707837645,-707.26,0.00019778,2]
[359101299,1745707837655,-400.0,0.00019778,2]
[359101301,1745707837667,-400.0,0.00019778,2]
[359101303,1745707837676,-400.0,0.00019778,2]
[359101305,1745707837686,-400.0,0.00019778,2]
[359101307,1745707837696,-400.0,0.00019778,2]
[359101309,1745707837705,-500.0,0.00019778,2]
[359101311,1745707837714,-400.0,0.00019778,2]
[359101313,1745707837724,-400.0,0.00019778,2]
[359101315,1745707837733,-574.21,0.00019778,2]
[359101317,1745707837743,-562.78,0.00019778,2]
[359101319,1745707837753,-400.0,0.00019778,2]
[359101321,1745707837762,-43460.27309042,0.00019778,2]
[359101387,1745707838391,-2267.35344394,0.00019778,2]
[359101518,1745707839886,-167.3796736,0.00019677,2]
[359101521,1745707839896,-1054.5978883,0.00019777,2]
[359101523,1745707839907,-464.29828496,0.00019777,2]
[359101526,1745707839932,-1509.98033706,0.00019777,2]
[359101545,1745707840110,-5690.13271568,0.00019777,2]
[359101547,1745707840121,-400.0,0.00019777,2]
[359101550,1745707840130,-34416.43346564,0.00019778,2]
[359101552,1745707840139,-764.35,0.00019778,2]
[359101554,1745707840149,-777.75,0.00019778,2]
[359101556,1745707840159,-400.0,0.00019778,2]
[359101558,1745707840169,-400.0,0.00019778,2]
[359101560,1745707840179,-2270.77,0.00019778,2]
[359101562,1745707840189,-520.36,0.00019778,2]
[359101564,1745707840198,-461.02,0.00019778,2]
[359101566,1745707840208,-400.0,0.00019778,2]
[359101568,1745707840217,-437.34,0.00019778,2]
[359101570,1745707840226,-9046.58,0.00019778,2]
[359101573,1745707840236,-500.0,0.00019778,2]
[359101575,1745707840245,-400.0,0.00019778,2]
[359101577,1745707840254,-500.0,0.00019778,2]
[359101579,1745707840263,-400.0,0.00019778,2]
[359101581,1745707840272,-400.0,0.00019778,2]
[359101583,1745707840282,-567.43,0.00019778,2]
[359101585,1745707840292,-4462.53,0.00019778,2]
[359101587,1745707840301,-400.0,0.00019778,2]
[359101589,1745707840310,-400.0,0.00019778,2]
[359101591,1745707840319,-400.0,0.00019778,2]
[359101593,1745707840328,-500.0,0.00019778,2]
[359101595,1745707840338,-400.0,0.00019778,2]
[359101597,1745707840348,-400.0,0.00019778,2]
[359101599,1745707840357,-400.0,0.00019778,2]
[359101601,1745707840367,-400.0,0.00019778,2]
[359101603,1745707840377,-400.0,0.00019778,2]
[359101605,1745707840386,-1849.04,0.00019778,2]
[359101607,1745707840395,-619.61,0.00019778,2]
[359101609,1745707840404,-400.0,0.00019778,2]
[359101610,1745707840413,-400.0,0.00019778,2]
[359101612,1745707840424,-400.0,0.00019778,2]
[359101614,1745707840434,-400.0,0.00019778,2]
[359101617,1745707840444,-400.0,0.00019778,2]
[359101618,1745707840454,-527.52,0.00019778,2]
[359101621,1745707840464,-166.08524711,0.00019778,2]
[359101622,1745707840473,-489.05,0.00019778,2]
[359101624,1745707840483,-400.0,0.00019778,2]
[359101626,1745707840494,-400.0,0.00019778,2]
[359101628,1745707840503,-419.6,0.00019778,2]
[359101631,1745707840513,-400.0,0.00019778,2]
[359101633,1745707840523,-400.0,0.00019778,2]
[359101635,1745707840533,-400.0,0.00019778,2]
[359101636,1745707840543,-400.0,0.00019778,2]
[359101638,1745707840552,-626.62,0.00019778,2]
[359101641,1745707840563,-450.22,0.00019778,2]
[359101643,1745707840573,-92387.5,0.00019778,2]
[359101645,1745707840583,-400.0,0.00019778,2]
[359101647,1745707840593,-1376.53,0.00019778,2]
[359101649,1745707840603,-627.22,0.00019778,2]
[359101651,1745707840612,-500.0,0.00019778,2]
[359101653,1745707840625,-400.0,0.00019778,2]
[359101655,1745707840634,-400.0,0.00019778,2]
[359101657,1745707840643,-782.38,0.00019778,2]
[359101659,1745707840652,-400.0,0.00019778,2]
[359101660,1745707840661,-500.0,0.00019778,2]
[359101662,1745707840671,-662.85,0.00019778,2]
[359101665,1745707840681,-400.0,0.00019778,2]
[359101666,1745707840692,-400.0,0.00019778,2]
[359101668,1745707840702,-400.0,0.00019778,2]
[359101670,1745707840712,-750.72,0.00019778,2]
[359101672,1745707840721,-478.55,0.00019778,2]
[359101674,1745707840730,-500.0,0.00019778,2]
[359101676,1745707840740,-400.0,0.00019778,2]
[359101678,1745707840749,-400.0,0.00019778,2]
[359101680,1745707840758,-400.0,0.00019778,2]
[359101682,1745707840767,-600.04,0.00019778,2]
[359101684,1745707840776,-400.0,0.00019778,2]
[359101686,1745707840786,-400.0,0.00019778,2]
[359101688,1745707840795,-680.79,0.00019778,2]
[359101690,1745707840804,-424.95,0.00019778,2]
[359101692,1745707840813,-527.17,0.00019778,2]
[359101694,1745707840822,-460.98,0.00019778,2]
[359101696,1745707840832,-400.0,0.00019778,2]
[359101698,1745707840841,-545.7,0.00019778,2]
[359101700,1745707840850,-400.0,0.00019778,2]
[359101701,1745707840860,-500.0,0.00019778,2]
[359101703,1745707840869,-400.0,0.00019778,2]
[359101705,1745707840879,-669.89,0.00019778,2]
[359101707,1745707840889,-736.63,0.00019778,2]
[359101709,1745707840900,-540.94,0.00019778,2]
[359101711,1745707840909,-400.0,0.00019778,2]
[359101713,1745707840919,-500.0,0.00019778,2]
[359101715,1745707840928,-150.0,0.00019778,2]
[359101717,1745707840939,-400.0,0.00019778,2]
[359101719,1745707840951,-443.12,0.00019778,2]
[359101721,1745707840960,-400.0,0.00019778,2]
[359101723,1745707840968,-590.81,0.00019778,2]
[359101725,1745707840979,-400.0,0.00019778,2]
[359101727,1745707840989,-150.0,0.00019778,2]
[359101729,1745707840998,-400.0,0.00019778,2]
[359101731,1745707841008,-150.0,0.00019778,2]
[359101733,1745707841019,-400.0,0.00019778,2]
[359101735,1745707841028,-150.0,0.00019778,2]
[359101737,1745707841038,-400.0,0.00019778,2]
[359101739,1745707841047,-483.43,0.00019778,2]
[359101741,1745707841057,-214.34432765,0.00019778,2]
[359101743,1745707841066,-400.0,0.00019778,2]
[359101745,1745707841075,-150.0,0.00019778,2]
[359101747,1745707841085,-550.86,0.00019778,2]
[359101749,1745707841095,-150.0,0.00019778,2]
[359101752,1745707841106,-400.0,0.00019778,2]
[359101754,1745707841115,-754.62,0.00019778,2]
[359101756,1745707841125,-400.0,0.00019778,2]
[359101757,1745707841135,-413.08,0.00019778,2]
[359101759,1745707841145,-400.0,0.00019778,2]
[359101762,1745707841155,-400.0,0.00019778,2]
[359101763,1745707841164,-529.38,0.00019778,2]
[359101765,1745707841174,-400.0,0.00019778,2]
[359101768,1745707841184,-400.0,0.00019778,2]
[359101770,1745707841194,-782.99,0.00019778,2]
[359101772,1745707841204,-400.0,0.00019778,2]
[359101773,1745707841213,-400.0,0.00019778,2]
[359101775,1745707841222,-2458.47,0.00019778,2]
[359101778,1745707841232,-400.0,0.00019778,2]
[359101779,1745707841241,-486.21,0.00019778,2]
[359101782,1745707841251,-565.75,0.00019778,2]
[359101784,1745707841260,-400.0,0.00019778,2]
[359101786,1745707841271,-400.0,0.00019778,2]
[359101788,1745707841280,-400.0,0.00019778,2]
[359101790,1745707841290,-1176.41,0.00019778,2]
[359101792,1745707841299,-755.69,0.00019778,2]
[359101794,1745707841309,-942.99,0.00019778,2]
[359101795,1745707841318,-400.0,0.00019778,2]
[359101797,1745707841329,-400.0,0.00019778,2]
[359101799,1745707841338,-400.0,0.00019778,2]
[359101802,1745707841348,-533.92,0.00019778,2]
[359101803,1745707841358,-477.38,0.00019778,2]
[359101805,1745707841367,-936.75,0.00019778,2]
[359101807,1745707841377,-400.0,0.00019778,2]
[359101809,1745707841387,-400.0,0.00019778,2]
[359101812,1745707841396,-400.0,0.00019778,2]
[359101814,1745707841407,-638.77,0.00019778,2]
[359101816,1745707841417,-894.18,0.00019778,2]
[359101818,1745707841426,-400.0,0.00019778,2]
[359101820,1745707841435,-462.76,0.00019778,2]
[359101822,1745707841444,-400.0,0.00019778,2]
[359101824,1745707841455,-429.41,0.00019778,2]
[359101825,1745707841466,-400.0,0.00019778,2]
[359101828,1745707841476,-400.0,0.00019778,2]
[359101829,1745707841485,-500.0,0.00019778,2]
[359101831,1745707841495,-400.0,0.00019778,2]
[359101834,1745707841505,-3549.52,0.00019778,2]
[359101836,1745707841514,-400.0,0.00019779,2]
[359101838,1745707841525,-206.2795176,0.00019779,2]
[359101840,1745707841534,-400.0,0.00019779,2]
[359101842,1745707841543,-627.63,0.00019779,2]
[359101844,1745707841552,-400.0,0.00019779,2]
[359101846,1745707841562,-400.0,0.00019779,2]
[359101848,1745707841571,-400.0,0.00019779,2]
[359101850,1745707841580,-714.93,0.00019779,2]
[359101851,1745707841590,-400.0,0.00019779,2]
[359101853,1745707841599,-400.0,0.00019779,2]
[359101855,1745707841608,-400.0,0.00019779,2]
[359101857,1745707841617,-400.0,0.00019779,2]
[359101860,1745707841627,-400.0,0.00019779,2]
[359101862,1745707841637,-400.0,0.00019779,2]
[359101864,1745707841646,-500.0,0.00019779,2]
[359101866,1745707841656,-500.0,0.00019779,2]
[359101868,1745707841666,-464.54,0.00019779,2]
[359101870,1745707841676,-400.0,0.00019779,2]
[359101872,1745707841685,-400.0,0.00019779,2]
[359101874,1745707841695,-400.0,0.00019779,2]
[359101876,1745707841704,-400.0,0.00019779,2]
[359101898,1745707841932,-400.0,0.00019779,2]
[359101901,1745707841946,-500.0,0.00019779,2]
[359101903,1745707841956,-400.0,0.00019779,2]
[359101905,1745707841965,-400.0,0.00019779,2]
[359101907,1745707841974,-400.0,0.00019779,2]
[359101909,1745707841983,-500.0,0.00019779,2]
[359101911,1745707841992,-400.0,0.00019779,2]
[359101912,1745707842002,-400.0,0.00019779,2]
[359101915,1745707842011,-400.0,0.00019779,2]
[359101917,1745707842020,-400.0,0.00019779,2]
[359101919,1745707842031,-400.0,0.00019779,2]
[359101921,1745707842040,-400.0,0.00019779,2]
[359101922,1745707842050,-400.0,0.00019779,2]
[359101924,1745707842059,-400.0,0.00019779,2]
[359101927,1745707842070,-594.85,0.00019779,2]
[359101929,1745707842079,-501.9982147,0.00019779,2]
[359101931,1745707842089,-400.0,0.00019779,2]
[359101932,1745707842098,-400.0,0.00019779,2]
[359101934,1745707842108,-400.0,0.00019779,2]
[359101937,1745707842119,-429.78,0.00019779,2]
[359101939,1745707842129,-400.0,0.00019779,2]
[359101941,1745707842139,-649.43,0.00019779,2]
[359101943,1745707842149,-520.48143566,0.00019779,2]
[359101945,1745707842158,-445.3,0.00019779,2]
[359101946,1745707842167,-400.0,0.00019779,2]
[359101949,1745707842177,-531.85,0.00019779,2]
[359101951,1745707842186,-400.0,0.00019779,2]
[359101953,1745707842196,-400.0,0.00019779,2]
[359101955,1745707842205,-776.66,0.00019779,2]
[359101957,1745707842215,-400.0,0.00019779,2]
[359101958,1745707842223,-400.0,0.00019779,2]
[359101960,1745707842231,-400.0,0.00019779,2]
[359101961,1745707842240,-518.00734972,0.00019779,2]
[359101962,1745707842249,-400.0,0.00019779,2]
[359101963,1745707842258,-520.05285185,0.00019779,2]
[359101964,1745707842267,-421.2,0.00019779,2]
[359101965,1745707842277,-1287.45,0.00019779,2]
[359101966,1745707842286,-400.0,0.00019779,2]
[359101967,1745707842295,-400.0,0.00019779,2]
[359101968,1745707842305,-400.0,0.00019779,2]
[359101969,1745707842314,-400.0,0.00019779,2]
[359101970,1745707842324,-469.56,0.00019779,2]
[359101971,1745707842333,-400.0,0.00019779,2]
[359101972,1745707842343,-1481.2,0.00019779,2]
[359101973,1745707842353,-518.58376662,0.00019779,2]
[359101974,1745707842363,-400.0,0.00019779,2]
[359101975,1745707842373,-500.0,0.00019779,2]
[359101976,1745707842382,-400.0,0.00019779,2]
[359101978,1745707842392,-400.0,0.00019779,2]
[359101980,1745707842401,-494.56,0.00019779,2]
[359101982,1745707842410,-400.0,0.00019779,2]
[359101984,1745707842420,-638.85,0.00019779,2]
[359101986,1745707842430,-400.0,0.00019779,2]
[359101988,1745707842439,-400.0,0.00019779,2]
[359101990,1745707842448,-500.0,0.00019779,2]
[359101992,1745707842458,-636.01,0.00019779,2]
[359101994,1745707842467,-400.0,0.00019779,2]
[359101996,1745707842476,-400.0,0.00019779,2]
[359101998,1745707842486,-515.42272426,0.00019779,2]
[359102000,1745707842495,-484.5,0.00019779,2]
[359102002,1745707842505,-400.0,0.00019779,2]
[359102004,1745707842514,-400.0,0.00019779,2]
[359102006,1745707842523,-560.86,0.00019779,2]
[359102008,1745707842533,-472.06,0.00019779,2]
[359102010,1745707842542,-400.0,0.00019779,2]
[359102012,1745707842551,-400.0,0.00019779,2]
[359102014,1745707842560,-400.0,0.00019779,2]
[359102016,1745707842570,-400.0,0.00019779,2]
[359102018,1745707842579,-502.9539834,0.00019779,2]
[359102020,1745707842588,-400.0,0.00019779,2]
[359102022,1745707842598,-400.0,0.00019779,2]
[359102024,1745707842607,-427.87,0.00019779,2]
[359102026,1745707842616,-517.47,0.00019779,2]
[359102028,1745707842626,-500.0,0.00019779,2]
[359102030,1745707842636,-500.0,0.00019779,2]
[359102032,1745707842645,-2789.46,0.00019779,2]
[359102034,1745707842654,-400.0,0.00019779,2]
[359102036,1745707842663,-400.0,0.00019779,2]
[359102038,1745707842672,-500.0,0.00019779,2]
[359102040,1745707842681,-400.0,0.00019779,2]
[359102042,1745707842690,-400.0,0.00019779,2]
[359102044,1745707842700,-526.98,0.00019779,2]
[359102046,1745707842709,-400.0,0.00019779,2]
[359102047,1745707842719,-500.0,0.00019779,2]
[359102049,1745707842728,-400.0,0.00019779,2]
[359102051,1745707842738,-500.0,0.00019779,2]
[359102053,1745707842747,-654.51,0.00019779,2]
[359102055,1745707842757,-507.73663296,0.00019779,2]
[359102057,1745707842766,-400.0,0.00019779,2]
[359102059,1745707842775,-400.0,0.00019779,2]
[359102061,1745707842784,-400.0,0.00019779,2]
[359102063,1745707842793,-400.0,0.00019779,2]
[359102065,1745707842803,-400.0,0.00019779,2]
[359102067,1745707842813,-400.0,0.00019779,2]
[359102070,1745707842822,-499.48,0.00019779,2]
[359102071,1745707842831,-400.0,0.00019779,2]
[359102074,1745707842841,-400.0,0.00019779,2]
[359102076,1745707842851,-400.0,0.00019779,2]
[359102078,1745707842861,-400.0,0.00019779,2]
[359102079,1745707842872,-400.0,0.00019779,2]
[359102082,1745707842882,-531.68,0.00019779,2]
[359102084,1745707842892,-400.0,0.00019779,2]
[359102086,1745707842902,-400.0,0.00019779,2]
[359102088,1745707842912,-400.0,0.00019779,2]
[359102089,1745707842921,-400.0,0.00019779,2]
[359102092,1745707842931,-181.05139569,0.00019779,2]
[359102093,1745707842941,-400.0,0.00019779,2]
[359102095,1745707842953,-608.65,0.00019779,2]
[359102098,1745707842963,-681.38,0.00019779,2]
[359102100,1745707842973,-400.0,0.00019779,2]
[359102101,1745707842984,-400.0,0.00019779,2]
[359102104,1745707842993,-400.0,0.00019779,2]
[359102105,1745707843002,-500.0,0.00019779,2]
[359102107,1745707843012,-389.02463321,0.00019779,2]
[359102110,1745707843024,-400.0,0.00019779,2]
[359102111,1745707843034,-400.0,0.00019779,2]
[359102113,1745707843046,-499.61,0.00019779,2]
[359102116,1745707843057,-400.0,0.00019779,2]
[359102118,1745707843067,-400.0,0.00019779,2]
[359102120,1745707843078,-400.0,0.00019779,2]
[359102123,1745707843088,-400.0,0.00019779,2]
[359102125,1745707843098,-400.0,0.00019779,2]
[359102128,1745707843108,-400.0,0.00019779,2]
[359102130,1745707843117,-500.0,0.00019779,2]
[359102133,1745707843127,-500.0,0.00019779,2]
[359102136,1745707843137,-3462.36,0.00019779,2]
[359102139,1745707843146,-500.0,0.00019779,2]
[359102141,1745707843156,-400.0,0.00019779,2]
[359102144,1745707843165,-500.0,0.00019779,2]
[359102146,1745707843174,-400.0,0.00019779,2]
[359102148,1745707843184,-250.63054389,0.00019779,2]
[359102150,1745707843194,-427.47655782,0.00019779,2]
[359102152,1745707843204,-400.0,0.00019779,2]
[359102154,1745707843213,-500.0,0.00019779,2]
[359102156,1745707843222,-500.0,0.00019779,2]
[359102158,1745707843232,-400.0,0.00019779,2]
[359102160,1745707843241,-579.31,0.00019779,2]
[359102162,1745707843250,-400.0,0.00019779,2]
[359102164,1745707843259,-400.0,0.00019779,2]
[359102166,1745707843269,-500.0,0.00019779,2]
[359102168,1745707843278,-458.52,0.00019779,2]
[359102171,1745707843287,-487.91,0.00019779,2]
[359102174,1745707843297,-500.0,0.00019779,2]
[359102177,1745707843306,-400.0,0.00019779,2]
[359102180,1745707843316,-400.0,0.00019779,2]
[359102182,1745707843326,-400.0,0.00019779,2]
[359102184,1745707843335,-690.97,0.00019779,2]
[359102185,1745707843345,-380.18,0.00019779,2]
[359102188,1745707843354,-383.00964834,0.00019781,2]
[359102189,1745707843364,-500.0,0.00019799,2]
[359102191,1745707843373,-638.85,0.00019799,2]
[359102193,1745707843383,-500.0,0.00019799,2]
[359102195,1745707843392,-500.0,0.00019799,2]
[359102197,1745707843402,-500.0,0.00019799,2]
[359102199,1745707843411,-735.8646718,0.00019799,2]
[359102201,1745707843421,-1655.87987926,0.00019801,2]
[359102203,1745707843431,-337.12651028,0.00019801,2]
[359102205,1745707843440,-150.0,0.00019805,2]
[359102207,1745707843449,-200.0,0.00019805,2]
[359102209,1745707843459,-665.0,0.00019805,2]
[359102211,1745707843468,-150.0,0.00019805,2]
[359102213,1745707843478,-150.0,0.00019805,2]
[359102215,1745707843487,-150.0,0.00019805,2]
[359102217,1745707843497,-500.0,0.00019808,2]
[359102219,1745707843506,-1655.87987926,0.00019826,2]
[359102221,1745707843515,-337.12651028,0.00019826,2]
[359102223,1745707843526,-178.26918905,0.00019826,2]
[359102225,1745707843536,-150.0,0.00019833,2]
[359102227,1745707843545,-665.0,0.00019833,2]
[359102229,1745707843555,-200.0,0.00019833,2]
[359102231,1745707843564,-1655.87987926,0.00019851,2]
[359102233,1745707843574,-337.12651028,0.00019851,2]
[359102235,1745707843583,-200.0,0.0001986,2]
[359102237,1745707843592,-665.0,0.0001986,2]
[359102239,1745707843601,-151.0,0.00019874,2]
[359102241,1745707843611,-151.0,0.00019874,2]
[359102243,1745707843620,-151.0,0.00019874,2]
[359102245,1745707843630,-151.0,0.00019874,2]
[359102247,1745707843639,-151.0,0.00019874,2]
[359102249,1745707843648,-151.0,0.00019875,2]
[359102251,1745707843657,-151.0,0.00019875,2]
[359102253,1745707843666,-151.0,0.00019875,2]
[359102255,1745707843675,-1655.87987926,0.00019875,2]
[359102257,1745707843685,-337.12651028,0.00019875,2]
[359102259,1745707843694,-500.0,0.00019879,2]
[359102261,1745707843703,-500.0,0.00019879,2]
[359102263,1745707843713,-14563.1061,0.0001988,2]
[359102265,1745707843722,-158.68254028,0.0001988,2]
[359102267,1745707843731,-167.28667142,0.00019886,2]
[359102269,1745707843740,-665.0,0.00019888,2]
[359102271,1745707843750,-1655.87987926,0.000199,2]
[359102274,1745707843760,-337.12651028,0.000199,2]
[359102277,1745707843769,-178.26918905,0.000199,2]
[359102279,1745707843778,-168.56609644,0.000199,2]
[359102281,1745707843788,-665.0,0.00019915,2]
[359102284,1745707843797,-665.0,0.00019942,2]
[359102287,1745707843807,-638.77,0.00019943,2]
[359102290,1745707843816,-1336.0,0.00019944,2]
[359102293,1745707843826,-708.516,0.00019944,2]
[359102295,1745707843835,-1287.0,0.00019944,2]
[359102297,1745707843844,-796.0,0.00019944,2]
[359102299,1745707843854,-579.0,0.00019944,2]
[359102301,1745707843864,-1446.0,0.00019944,2]
[359102303,1745707843874,-2063.0,0.00019944,2]
[359102305,1745707843884,-548.0,0.00019944,2]
[359102307,1745707843893,-911.0,0.00019944,2]
[359102309,1745707843903,-153.0,0.00019944,2]
[359102311,1745707843912,-3991.0,0.00019944,2]
[359102313,1745707843921,-727.082,0.00019944,2]
[359102315,1745707843931,-6193.0,0.00019944,2]
[359102317,1745707843944,-150.0,0.00019944,2]
[359102319,1745707843953,-187.0,0.00019945,2]
[359102321,1745707843962,-3116.859,0.00019965,2]
[359102323,1745707843971,-174.042,0.00019965,2]
[359102325,1745707843981,-500.0,0.00019965,2]
[359102327,1745707843990,-638.85,0.00019965,2]
[359102329,1745707843999,-500.0,0.00019965,2]
[359102331,1745707844008,-215.28252671,0.00019965,2]
[359102333,1745707844018,-500.0,0.00019965,2]
[359102335,1745707844027,-500.0,0.00019965,2]
[359102337,1745707844037,-500.0,0.00019965,2]
[359102339,1745707844046,-638.77,0.00019965,2]
[359102341,1745707844056,-151.0,0.00019966,2]
[359102343,1745707844065,-151.0,0.00019966,2]
[359102344,1745707844074,-151.0,0.00019966,2]
[359102347,1745707844084,-151.0,0.00019966,2]
[359102349,1745707844093,-174.855026,0.00019966,2]
[359102350,1745707844103,-174.855026,0.00019966,2]
[359102353,1745707844112,-86838.0388333,0.00019966,2]
[359102355,1745707844122,-55196.4616447,0.00019966,2]
[359102357,1745707844131,-11791.5007987,0.00019966,2]
[359102359,1745707844141,-3792.0386238,0.00019966,2]
[359102360,1745707844151,-665.0,0.0001997,2]
[359102363,1745707844161,-637.35005319,0.0001997,2]
[359102365,1745707844171,-500.0,0.00019973,2]
[359102367,1745707844181,-500.0,0.00019973,2]
[359102369,1745707844190,-500.0,0.00019973,2]
[359102371,1745707844200,-500.0,0.00019973,2]
[359102373,1745707844210,-500.0,0.00019973,2]
[359102374,1745707844219,-500.0,0.00019973,2]
[359102377,1745707844229,-500.0,0.00019973,2]
[359102379,1745707844238,-500.0,0.00019973,2]
[359102381,1745707844248,-500.0,0.00019973,2]
[359102382,1745707844257,-500.0,0.00019973,2]
[359102384,1745707844267,-500.0,0.00019973,2]
[359102387,1745707844278,-500.0,0.00019973,2]
[359102389,1745707844287,-541.34995362,0.00019973,2]
[359102390,1745707844298,-631.98009462,0.00019973,2]
[359102392,1745707844308,-500.0,0.00019973,2]
[359102395,1745707844317,-400.0,0.00019979,2]
[359102397,1745707844326,-400.0,0.00019979,2]
[359102399,1745707844336,-400.0,0.00019979,2]
[359102400,1745707844346,-400.0,0.00019979,2]
[359102403,1745707844357,-500.0,0.00019979,2]
[359102405,1745707844368,-500.0,0.00019979,2]
[359102406,1745707844379,-500.0,0.00019979,2]
[359102409,1745707844389,-500.0,0.00019979,2]
[359102411,1745707844398,-500.0,0.00019979,2]
[359102412,1745707844408,-638.85,0.00019979,2]
[359102414,1745707844418,-638.85,0.00019979,2]
[359102416,1745707844427,-638.85,0.00019979,2]
[359102418,1745707844436,-638.85,0.00019979,2]
[359102421,1745707844446,-638.85,0.00019979,2]
[359102423,1745707844456,-638.85,0.00019979,2]
[359102424,1745707844466,-638.85,0.00019979,2]
[359102426,1745707844477,-500.0,0.00019979,2]
[359102429,1745707844486,-500.0,0.00019979,2]
[359102430,1745707844496,-500.0,0.00019979,2]
[359102432,1745707844507,-500.0,0.00019979,2]
[359102435,1745707844518,-500.0,0.00019979,2]
[359102436,1745707844528,-500.0,0.00019979,2]
[359102439,1745707844539,-500.0,0.00019979,2]
[359102441,1745707844548,-250.46,0.00019979,2]
[359102443,1745707844558,-500.0,0.00019979,2]
[359102445,1745707844568,-500.0,0.00019979,2]
[359102447,1745707844577,-500.0,0.00019979,2]
[359102449,1745707844587,-500.0,0.00019979,2]
[359102450,1745707844599,-500.0,0.00019979,2]